fUST/lending_fUST_20250720
["ID","MTS","AMOUNT","RATE_DAILY","PERIOD"]
[373416640,1752993038965,-460.0,0.0001736,2]
[373416641,1752993038975,-460.0,0.0001736,2]
[373416642,1752993038986,-460.0,0.0001736,2]
[373416643,1752993038995,-460.0,0.0001736,2]
[373416644,1752993039005,-460.0,0.0001736,2]
[373416645,1752993039014,-460.0,0.0001736,2]
[373416646,1752993039023,-460.0,0.00017361,2]
[373416647,1752993039032,-460.0,0.00017361,2]
[373416648,1752993039041,-460.0,0.00017361,2]
[373416649,1752993039054,-460.0,0.00017361,2]
[373416650,1752993039063,-461.42057068,0.00017362,2]
[373416651,1752993039072,-348.1456239,0.00017362,2]
[373416652,1752993039082,-460.0,0.00017362,2]
[373416653,1752993039093,-460.0,0.00017362,2]
[373416654,1752993039102,-460.0,0.00017362,2]
[373416655,1752993039112,-460.0,0.00017362,2]
[373416656,1752993039121,-460.0,0.00017362,2]
[373416657,1752993039131,-460.0,0.00017362,2]
[373416658,1752993039141,-734.93,0.00017362,2]
[373416659,1752993039150,-460.0,0.00017362,2]
[373416660,1752993039160,-460.0,0.00017362,2]
[373416661,1752993039169,-460.0,0.00017363,2]
[373416662,1752993039178,-457.14844608,0.00017363,2]
[373416663,1752993039188,-460.0,0.00017363,2]
[373416664,1752993039198,-219.53975283,0.00017363,2]
[373416665,1752993039208,-460.0,0.00017363,2]
[373416666,1752993039217,-437.71605876,0.00017363,2]
[373416667,1752993039228,-460.0,0.00017363,2]
[373416668,1752993039238,-460.0,0.00017363,2]
[373416669,1752993039247,-418.84733205,0.00017363,2]
[373416670,1752993039257,-460.72923665,0.00017363,2]
[373416671,1752993039266,-460.0,0.00017363,2]
[373416672,1752993039276,-460.0,0.00017363,2]
[373416673,1752993039286,-460.0,0.00017363,2]
[373416674,1752993039296,-502.16496801,0.00017373,2]
[373416675,1752993039305,-500.0,0.00017373,2]
[373416676,1752993039315,-501.33081149,0.00017373,2]
[373416677,1752993039324,-501.68789834,0.00017373,2]
[373416678,1752993039333,-474.77675801,0.00017373,2]
[373416679,1752993039343,-501.91683717,0.00017373,2]
[373416680,1752993039352,-500.0,0.00017373,2]
[373416681,1752993039362,-460.0,0.00017463,2]
[373416682,1752993039372,-460.0,0.00017463,2]
[373416683,1752993039381,-460.0,0.00017463,2]
[373416684,1752993039391,-461.97999121,0.00017463,2]
[373416685,1752993039401,-460.9530298,0.00017463,2]
[373416686,1752993039410,-460.0,0.00017463,2]
[373416687,1752993039419,-460.0,0.00017463,2]
[373416688,1752993039429,-1772.88,0.00017463,2]
[373416689,1752993039438,-443.13974796,0.00017463,2]
[373416703,1752993041537,-465.63186838,0.00017256,2]
[373416704,1752993041546,-461.30853,0.00017259,2]
[373416705,1752993041556,-460.0,0.00017259,2]
[373416706,1752993041566,-75.96025204,0.00017463,2]
[373416707,1752993041575,-460.0,0.00017463,2]
[373416708,1752993041585,-460.0,0.0001753,2]
[373416709,1752993041594,-460.0,0.0001753,2]
[373416710,1752993041604,-465.05759942,0.0001753,2]
[373416711,1752993041613,-460.0,0.0001753,2]
[373416712,1752993041623,-460.0,0.0001753,2]
[373416713,1752993041632,-558.45,0.0001753,2]
[373416714,1752993041642,-460.0,0.0001753,2]
[373416715,1752993041651,-461.0345749,0.0001753,2]
[373416716,1752993041661,-460.0,0.0001753,2]
[373416717,1752993041670,-466.48279146,0.0001753,2]
[373416718,1752993041679,-460.0,0.00017531,2]
[373416719,1752993041689,-468.4235225,0.00017531,2]
[373416720,1752993041698,-460.0,0.00017531,2]
[373416721,1752993041707,-1525.72,0.00017531,2]
[373416722,1752993041716,-460.0,0.00017532,2]
[373416723,1752993041726,-870.23,0.00017532,2]
[373416724,1752993041735,-623.08,0.00017532,2]
[373416725,1752993041745,-460.0,0.00017532,2]
[373416726,1752993041754,-460.0,0.00017532,2]
[373416727,1752993041763,-460.0,0.00017532,2]
[373416728,1752993041772,-789.96,0.00017532,2]
[373416729,1752993041781,-460.0,0.00017532,2]
[373416730,1752993041790,-574.34,0.00017532,2]
[373416731,1752993041800,-460.0,0.00017532,2]
[373416732,1752993041809,-460.0,0.00017532,2]
[373416733,1752993041818,-460.0,0.00017532,2]
[373416734,1752993041827,-460.0,0.00017532,2]
[373416735,1752993041837,-460.0,0.00017532,2]
[373416736,1752993041846,-460.0,0.00017532,2]
[373416737,1752993041858,-460.0,0.00017532,2]
[373416738,1752993041869,-1022.22,0.00017532,2]
[373416739,1752993041879,-250.46,0.00017532,2]
[373416740,1752993041890,-460.0,0.00017533,2]
[373416741,1752993041901,-460.0,0.00017533,2]
[373416742,1752993041913,-460.0,0.00017533,2]
[373416743,1752993041922,-460.0,0.00017533,2]
[373416744,1752993041931,-460.0,0.00017533,2]
[373416745,1752993041940,-460.0,0.00017533,2]
[373416746,1752993041950,-460.0,0.00017533,2]
[373416747,1752993041958,-460.0,0.00017533,2]
[373416748,1752993041970,-483.18,0.00017533,2]
[373416749,1752993041981,-460.0,0.00017533,2]
[373416750,1752993041991,-460.0,0.00017533,2]
[373416751,1752993042000,-460.0,0.00017533,2]
[373416752,1752993042009,-460.0,0.00017533,2]
[373416753,1752993042019,-460.0,0.00017533,2]
[373416754,1752993042030,-460.0,0.00017533,2]
[373416755,1752993042040,-460.0,0.00017533,2]
[373416756,1752993042053,-460.0,0.00017533,2]
[373416757,1752993042063,-460.0,0.00017533,2]
[373416758,1752993042072,-462.17010589,0.00017533,2]
[373416759,1752993042084,-460.0,0.00017533,2]
[373416760,1752993042095,-470.38205395,0.00017533,2]
[373416761,1752993042107,-460.0,0.00017533,2]
[373416762,1752993042117,-460.0,0.00017533,2]
[373416763,1752993042127,-460.0,0.00017533,2]
[373416764,1752993042139,-460.0,0.00017533,2]
[373416765,1752993042149,-460.0,0.00017533,2]
[373416766,1752993042159,-460.0,0.00017533,2]
[373416767,1752993042169,-460.0,0.00017533,2]
[373416768,1752993042179,-460.0,0.00017533,2]
[373416769,1752993042190,-435.62270531,0.00017533,2]
[373416770,1752993042200,-471.74103081,0.00017533,2]
[373416771,1752993042211,-460.0,0.00017533,2]
[373416772,1752993042221,-542.46,0.00017533,2]
[373416773,1752993042230,-460.0,0.00017533,2]
[373416774,1752993042240,-460.0,0.00017533,2]
[373416775,1752993042250,-460.0,0.00017533,2]
[373416777,1752993042259,-460.0,0.00017533,2]
[373416779,1752993042268,-460.0,0.00017533,2]
[373416780,1752993042278,-460.0,0.00017533,2]
[373416781,1752993042287,-460.0,0.00017533,2]
[373416782,1752993042296,-460.0,0.00017533,2]
[373416783,1752993042305,-460.0,0.00017533,2]
[373416784,1752993042314,-430.55259077,0.00017533,2]
[373416785,1752993042323,-460.0,0.00017533,2]
[373416786,1752993042332,-460.0,0.00017533,2]
[373416787,1752993042342,-460.0,0.00017533,2]
[373416788,1752993042351,-460.0,0.00017533,2]
[373416789,1752993042360,-460.0,0.00017533,2]
[373416790,1752993042369,-460.0,0.00017533,2]
[373416791,1752993042378,-460.0,0.00017533,2]
[373416792,1752993042388,-460.0,0.00017533,2]
[373416793,1752993042397,-460.0,0.00017533,2]
[373416794,1752993042406,-460.0,0.00017533,2]
[373416795,1752993042415,-466.52202714,0.00017533,2]
[373416797,1752993042425,-460.0,0.00017533,2]
[373416798,1752993042434,-460.0,0.00017533,2]
[373416800,1752993042443,-460.0,0.00017533,2]
[373416802,1752993042453,-460.0,0.00017533,2]
[373416803,1752993042462,-460.0,0.00017533,2]
[373416804,1752993042471,-460.0,0.00017533,2]
[373416806,1752993042481,-460.0,0.00017533,2]
[373416807,1752993042491,-460.0,0.00017533,2]
[373416808,1752993042499,-460.0,0.00017533,2]
[373416809,1752993042509,-460.0,0.00017533,2]
[373416810,1752993042518,-460.0,0.00017533,2]
[373416811,1752993042527,-460.0,0.00017533,2]
[373416812,1752993042536,-460.0,0.00017533,2]
[373416813,1752993042546,-1291.93,0.00017533,2]
[373416814,1752993042555,-460.0,0.00017533,2]
[373416816,1752993042564,-460.0,0.00017533,2]
[373416818,1752993042677,-460.0,0.00017534,2]
[373416819,1752993042688,-460.0,0.00017534,2]
[373416820,1752993042700,-460.0,0.00017534,2]
[373416821,1752993042712,-460.0,0.00017534,2]
[373416822,1752993042722,-460.0,0.00017534,2]
[373416823,1752993042732,-460.0,0.00017534,2]
[373416824,1752993042741,-460.0,0.00017534,2]
[373416825,1752993042752,-460.0,0.00017534,2]
[373416826,1752993042762,-460.0,0.00017534,2]
[373416827,1752993042772,-460.0,0.00017534,2]
[373416828,1752993042782,-460.0,0.00017534,2]
[373416829,1752993042792,-460.0,0.00017534,2]
[373416830,1752993042803,-460.0,0.00017534,2]
[373416831,1752993042813,-460.0,0.00017534,2]
[373416832,1752993042822,-460.0,0.00017534,2]
[373416833,1752993042832,-460.0,0.00017534,2]
[373416834,1752993042844,-463.78968443,0.00017534,2]
[373416835,1752993042855,-460.0,0.00017534,2]
[373416836,1752993042864,-461.94664758,0.00017534,2]
[373416837,1752993042874,-460.0,0.00017534,2]
[373416838,1752993042884,-463.09942501,0.00017534,2]
[373416839,1752993042895,-460.0,0.00017534,2]
[373416840,1752993042905,-460.0,0.00017534,2]
[373416841,1752993042914,-466.45132887,0.00017534,2]
[373416842,1752993042924,-460.0,0.00017534,2]
[373416843,1752993042936,-460.0,0.00017534,2]
[373416844,1752993042946,-465.86451168,0.00017534,2]
[373416845,1752993042956,-460.0,0.00017534,2]
[373416846,1752993042966,-460.0,0.00017534,2]
[373416847,1752993042975,-497.46,0.00017534,2]
[373416848,1752993042985,-462.21343727,0.00017534,2]
[373416849,1752993042994,-465.71372216,0.00017534,2]
[373416850,1752993043004,-460.0,0.00017534,2]
[373416851,1752993043015,-460.0,0.00017534,2]
[373416852,1752993043025,-460.0,0.00017534,2]
[373416853,1752993043036,-460.0,0.00017534,2]
[373416854,1752993043045,-325.20817734,0.00017534,2]
[373416855,1752993043058,-462.34055936,0.00017534,2]
[373416856,1752993043067,-460.0,0.00017534,2]
[373416857,1752993043076,-460.0,0.00017534,2]
[373416858,1752993043085,-16.78539717,0.00017534,2]
[373416859,1752993043099,-443.21460283,0.00017534,2]
[373416860,1752993043108,-445.69935345,0.00017534,2]
[373416861,1752993043119,-14.30064655,0.00017534,2]
[373416862,1752993043129,-460.0,0.00017534,2]
[373416863,1752993043139,-460.0,0.00017534,2]
[373416864,1752993043147,-460.0,0.00017534,2]
[373416865,1752993043157,-460.0,0.00017534,2]
[373416866,1752993043165,-460.0,0.00017534,2]
[373416867,1752993043174,-461.69748636,0.00017534,2]
[373416868,1752993043184,-460.0,0.00017534,2]
[373416869,1752993043192,-460.0,0.00017534,2]
[373416870,1752993043202,-460.0,0.00017534,2]
[373416872,1752993043211,-460.0,0.00017534,2]
[373416873,1752993043220,-463.21431031,0.00017534,2]
[373416874,1752993043229,-460.0,0.00017534,2]
[373416875,1752993043238,-460.0,0.00017534,2]
[373416876,1752993043248,-460.0,0.00017534,2]
[373416877,1752993043257,-460.0,0.00017534,2]
[373416878,1752993043266,-460.0,0.00017534,2]
[373416879,1752993043276,-460.0,0.00017534,2]
[373416880,1752993043284,-460.0,0.00017534,2]
[373416881,1752993043293,-460.0,0.00017534,2]
[373416882,1752993043303,-460.0,0.00017534,2]
[373416883,1752993043311,-1071.46,0.00017534,2]
[373416884,1752993043320,-460.0,0.00017534,2]
[373416885,1752993043330,-460.0,0.00017534,2]
[373416887,1752993043339,-460.0,0.00017534,2]
[373416889,1752993043349,-460.0,0.00017534,2]
[373416890,1752993043358,-460.0,0.00017534,2]
[373416891,1752993043367,-406.09186636,0.00017534,2]
[373416892,1752993043377,-460.0,0.00017534,2]
[373416893,1752993043386,-541.32,0.00017534,2]
[373416894,1752993043396,-460.0,0.00017534,2]
[373416895,1752993043405,-460.0,0.00017534,2]
[373416896,1752993043414,-488.87,0.00017534,2]
[373416897,1752993043423,-460.0,0.00017534,2]
[373416898,1752993043433,-460.0,0.00017534,2]
[373416899,1752993043442,-460.0,0.00017534,2]
[373416900,1752993043451,-460.0,0.00017534,2]
[373416901,1752993043461,-460.0,0.00017534,2]
[373416902,1752993043470,-460.0,0.00017534,2]
[373416903,1752993043479,-460.0,0.00017534,2]
[373416904,1752993043488,-460.0,0.00017534,2]
[373416905,1752993043498,-460.0,0.00017534,2]
[373416906,1752993043508,-482.18,0.00017535,2]
[373416907,1752993043518,-460.0,0.00017535,2]
[373416908,1752993043527,-463.06563048,0.00017535,2]
[373416909,1752993043537,-460.0,0.00017535,2]
[373416910,1752993043545,-500.0,0.00017573,2]
[373416911,1752993043555,-501.89189803,0.00017573,2]
[373416912,1752993043564,-188.14487007,0.00017634,2]
[373416913,1752993043573,-460.0,0.00017634,2]
[373416914,1752993043583,-460.0,0.00017634,2]
[373416915,1752993043592,-460.0,0.00017634,2]
[373416916,1752993043601,-462.45773506,0.00017634,2]
[373416917,1752993043610,-460.0,0.00017634,2]
[373416918,1752993043620,-460.0,0.00017634,2]
[373416919,1752993043629,-460.0,0.00017634,2]
[373416920,1752993043639,-460.0,0.00017634,2]
[373416921,1752993043648,-460.0,0.00017634,2]
[373416922,1752993043657,-460.0,0.00017634,2]
[373416923,1752993043667,-460.0,0.00017634,2]
[373416924,1752993043676,-460.0,0.00017634,2]
[373416925,1752993043686,-460.0,0.00017634,2]
[373416926,1752993043695,-460.0,0.00017634,2]
[373416927,1752993043704,-460.0,0.00017634,2]
[373416928,1752993043713,-460.0,0.00017634,2]
[373416929,1752993043722,-460.0,0.00017634,2]
[373416930,1752993043731,-460.0,0.00017634,2]
[373416931,1752993043740,-460.0,0.00017634,2]
[373416932,1752993043749,-460.0,0.00017634,2]
[373416933,1752993043758,-460.0,0.00017634,2]
[373416934,1752993043768,-460.0,0.00017634,2]
[373416935,1752993043777,-460.0,0.00017634,2]
[373416936,1752993043786,-188.92951953,0.00017634,2]
[373416937,1752993043795,-460.0,0.00017634,2]
[373416938,1752993043804,-460.0,0.00017634,2]
[373416939,1752993043813,-460.0,0.00017634,2]
[373416940,1752993043822,-465.7061154,0.00017634,2]
[373416941,1752993043831,-460.0,0.00017634,2]
[373416942,1752993043840,-306.31835517,0.00017634,2]
[373416943,1752993043849,-225.34999022,0.00017634,2]
[373416944,1752993043859,-460.0,0.00017634,2]
[373416945,1752993043868,-467.47571395,0.00017634,2]
[373416946,1752993043877,-460.0,0.00017634,2]
[373416947,1752993043887,-460.0,0.00017634,2]
[373416948,1752993043896,-472.75149826,0.00017634,2]
[373416949,1752993043905,-460.0,0.00017634,2]
[373416950,1752993043914,-464.31808404,0.00017634,2]
[373416951,1752993043923,-460.0,0.00017635,2]
[373416952,1752993043933,-394.62973813,0.00017635,2]
[373416953,1752993043942,-460.0,0.00017636,2]
[373416954,1752993043951,-461.90365105,0.00017636,2]
[373416955,1752993043960,-734.93,0.00017636,2]
[373416956,1752993043969,-460.0,0.00017636,2]
[373416957,1752993043978,-564.8761952,0.00017636,2]
[373416958,1752993043988,-460.0,0.00017637,2]
[373416959,1752993043997,-460.0,0.00017637,2]
[373416960,1752993044006,-460.0,0.00017637,2]
[373416961,1752993044016,-460.0,0.00017637,2]
[373416962,1752993044026,-404.01511885,0.00017682,2]
[373416963,1752993044035,-460.0,0.00017737,2]
[373416964,1752993044045,-460.0,0.00017737,2]
[373416965,1752993044059,-460.0,0.00017737,2]
[373416966,1752993044068,-460.0,0.00017737,2]
[373416967,1752993044077,-460.0,0.00017737,2]
[373416968,1752993044086,-1772.88,0.00017737,2]
[373416969,1752993044096,-519.1,0.00017737,2]
[373416970,1752993044105,-460.0,0.00017737,2]
[373416971,1752993044115,-460.0,0.00017804,2]
[373416972,1752993044124,-460.0,0.00017804,2]
[373416973,1752993044135,-460.0,0.00017804,2]
[373416974,1752993044144,-486.48,0.00017804,2]
[373416975,1752993044153,-558.45,0.00017804,2]
[373416976,1752993044162,-207.78791109,0.00017804,2]
[373416977,1752993044171,-460.0,0.00017805,2]
[373416978,1752993044181,-460.0,0.00017805,2]
[373416979,1752993044190,-1525.72,0.00017805,2]
[373416980,1752993044199,-870.23,0.00017806,2]
[373416981,1752993044208,-623.08,0.00017806,2]
[373416982,1752993044217,-460.0,0.00017806,2]
[373416983,1752993044226,-473.18760096,0.00017806,2]
[373416984,1752993044235,-173.25920572,0.00017806,2]
[373416985,1752993044245,-789.96,0.00017806,2]
[373416986,1752993044253,-460.0,0.00017806,2]
[373416987,1752993044262,-460.0,0.00017806,2]
[373416988,1752993044271,-460.0,0.00017806,2]
[373416989,1752993044280,-460.0,0.00017806,2]
[373416990,1752993044289,-570.85777275,0.00017806,2]
[373416991,1752993044298,-460.0,0.00017806,2]
[373416992,1752993044306,-460.0,0.00017806,2]
[373416993,1752993044315,-169.13,0.00017806,2]
[373416994,1752993044324,-1022.22,0.00017806,2]
[373416995,1752993044334,-460.0,0.00017807,2]
[373416996,1752993044343,-460.0,0.00017807,2]
[373416997,1752993044352,-462.87993816,0.00017807,2]
[373416998,1752993044361,-460.0,0.00017807,2]
[373416999,1752993044369,-460.0,0.00017807,2]
[373417000,1752993044378,-460.0,0.00017807,2]
[373417001,1752993044388,-460.0,0.00017807,2]
[373417002,1752993044396,-460.0,0.00017807,2]
[373417003,1752993044406,-460.0,0.00017807,2]
[373417004,1752993044414,-460.0,0.00017807,2]
[373417005,1752993044423,-460.0,0.00017807,2]
[373417006,1752993044432,-460.0,0.00017807,2]
[373417007,1752993044441,-460.0,0.00017807,2]
[373417008,1752993044450,-460.0,0.00017807,2]
[373417009,1752993044459,-467.9972192,0.00017807,2]
[373417010,1752993044468,-460.0,0.00017807,2]
[373417011,1752993044477,-460.0,0.00017807,2]
[373417012,1752993044486,-460.0,0.00017807,2]
[373417013,1752993044495,-294.23829248,0.00017807,2]
[373417014,1752993044505,-460.0,0.00017807,2]
[373417015,1752993044514,-460.0,0.00017807,2]
[373417016,1752993044523,-460.0,0.00017807,2]
[373417017,1752993044532,-460.0,0.00017807,2]
[373417018,1752993044541,-460.0,0.00017807,2]
[373417019,1752993044550,-460.0,0.00017807,2]
[373417020,1752993044559,-460.0,0.00017807,2]
[373417021,1752993044568,-473.85373631,0.00017807,2]
[373417022,1752993044577,-460.0,0.00017807,2]
[373417023,1752993044586,-460.0,0.00017807,2]
[373417024,1752993044594,-460.0,0.00017807,2]
[373417025,1752993044603,-155.01208625,0.00017807,2]
[373417026,1752993044612,-460.0,0.00017807,2]
[373417027,1752993044622,-460.0,0.00017807,2]
[373417028,1752993044631,-460.0,0.00017807,2]
[373417029,1752993044641,-460.0,0.00017807,2]
[373417030,1752993044650,-460.0,0.00017807,2]
[373417031,1752993044659,-460.0,0.00017807,2]
[373417032,1752993044670,-460.0,0.00017807,2]
[373417033,1752993044679,-460.0,0.00017807,2]
[373417034,1752993044688,-460.0,0.00017807,2]
[373417035,1752993044697,-460.0,0.00017807,2]
[373417036,1752993044706,-460.0,0.00017807,2]
[373417037,1752993044715,-460.0,0.00017807,2]
[373417038,1752993044725,-460.0,0.00017807,2]
[373417039,1752993044734,-460.0,0.00017807,2]
[373417040,1752993044744,-460.0,0.00017807,2]
[373417041,1752993044753,-460.0,0.00017807,2]
[373417042,1752993044762,-460.0,0.00017807,2]
[373417043,1752993044771,-1291.93,0.00017807,2]
[373417044,1752993044781,-460.0,0.00017807,2]
[373417045,1752993044792,-460.0,0.00017807,2]
[373417046,1752993044803,-460.0,0.00017808,2]
[373417047,1752993044812,-460.0,0.00017808,2]
[373417048,1752993044822,-540.0,0.00017808,2]
[373417049,1752993044832,-460.0,0.00017808,2]
[373417050,1752993044841,-460.0,0.00017808,2]
[373417051,1752993044852,-559.08660452,0.00017808,2]
[373417052,1752993044861,-460.0,0.00017808,2]
[373417053,1752993044870,-460.0,0.00017808,2]
[373417054,1752993044879,-460.0,0.00017808,2]
[373417055,1752993044888,-527.97990617,0.00017808,2]
[373417056,1752993044897,-460.0,0.00017808,2]
[373417057,1752993044906,-470.9,0.00017808,2]
[373417058,1752993044915,-460.0,0.00017808,2]
[373417059,1752993044924,-460.0,0.00017808,2]
[373417060,1752993044933,-463.31819097,0.00017808,2]
[373417061,1752993044943,-403.78904053,0.00017808,2]
[373417062,1752993044952,-566.36637116,0.00017808,2]
[373417063,1752993044961,-460.0,0.00017808,2]
[373417064,1752993044970,-463.93788713,0.00017808,2]
[373417065,1752993044979,-460.0,0.00017808,2]
[373417066,1752993044989,-460.0,0.00017808,2]
[373417067,1752993044998,-460.0,0.00017808,2]
[373417068,1752993045007,-460.0,0.00017808,2]
[373417069,1752993045016,-460.0,0.00017808,2]
[373417070,1752993045025,-460.0,0.00017808,2]
[373417071,1752993045034,-79.1699748,0.00017808,2]
[373417072,1752993045048,-380.8300252,0.00017808,2]
[373417073,1752993045061,-460.0,0.00017808,2]
[373417074,1752993045070,-460.0,0.00017808,2]
[373417075,1752993045079,-468.63971762,0.00017808,2]
[373417076,1752993045088,-463.22346233,0.00017808,2]
[373417077,1752993045098,-460.0,0.00017808,2]
[373417078,1752993045107,-183.91927107,0.00017808,2]
[373417079,1752993045234,-231.94524432,0.00017808,2]
[373417080,1752993045245,-460.0,0.00017808,2]
[373417081,1752993045254,-460.0,0.00017808,2]
[373417082,1752993045263,-460.0,0.00017808,2]
[373417084,1752993045273,-87.15772125,0.00017808,2]
[373417086,1752993045284,-372.84227875,0.00017808,2]
[373417087,1752993045294,-1071.46,0.00017808,2]
[373417088,1752993045303,-460.0,0.00017808,2]
[373417089,1752993045315,-460.0,0.00017808,2]
[373417090,1752993045325,-460.0,0.00017808,2]
[373417091,1752993045334,-212.66,0.00017808,2]
[373417092,1752993045344,-460.0,0.00017808,2]
[373417093,1752993045354,-460.0,0.00017808,2]
[373417094,1752993045364,-488.87,0.00017808,2]
[373417095,1752993045374,-460.0,0.00017808,2]
[373417096,1752993045385,-460.0,0.00017808,2]
[373417097,1752993045396,-460.0,0.00017808,2]
[373417098,1752993045405,-460.0,0.00017808,2]
[373417099,1752993045414,-460.0,0.00017808,2]
[373417100,1752993045424,-460.0,0.00017808,2]
[373417101,1752993045433,-622.80035993,0.000179,2]
[373417102,1752993045445,-1109.08182514,0.000179,2]
[373417103,1752993045456,-460.0,0.00017908,2]
[373417104,1752993045465,-460.0,0.00017908,2]
[373417105,1752993045474,-460.0,0.00017908,2]
[373417106,1752993045484,-460.0,0.00017908,2]
[373417107,1752993045494,-460.0,0.00017908,2]
[373417108,1752993045504,-460.0,0.00017908,2]
[373417109,1752993045514,-154.29472467,0.00017908,2]
[373417114,1752993045981,-460.0,0.00017256,2]
[373417115,1752993045991,-460.0,0.00017257,2]
[373417116,1752993046001,-460.0,0.00017531,2]
[373417117,1752993046010,-305.70527533,0.00017908,2]
[373417118,1752993046019,-460.0,0.00017908,2]
[373417119,1752993046028,-460.0,0.00017908,2]
[373417120,1752993046038,-465.43201947,0.00017908,2]
[373417121,1752993046047,-460.0,0.00017908,2]
[373417122,1752993046061,-460.0,0.00017908,2]
[373417123,1752993046070,-460.0,0.00017908,2]
[373417124,1752993046079,-460.0,0.00017908,2]
[373417125,1752993046088,-460.0,0.00017908,2]
[373417126,1752993046098,-606.6221933,0.00017908,2]
[373417127,1752993046107,-460.0,0.00017908,2]
[373417128,1752993046116,-460.0,0.00017908,2]
[373417129,1752993046126,-460.0,0.00017908,2]
[373417130,1752993046136,-460.0,0.00017908,2]
[373417131,1752993046145,-109.37781749,0.00017908,2]
[373417132,1752993046157,-350.62218251,0.00017908,2]
[373417133,1752993046166,-460.0,0.00017908,2]
[373417134,1752993046175,-460.0,0.00017908,2]
[373417135,1752993046185,-17.64200432,0.00017908,2]
[373417138,1752993278284,150.0,0.00014932,2]
[373417139,1752993305339,903.34284183,0.0001652,2]
[373417140,1752993305497,1185.51075614,0.0001652,2]
[373417142,1752993399601,186.076187,0.00013699,2]
[373417143,1752993454921,198.08712164,0.00016393,2]
[373417144,1752993606523,10000.0,0.00016257,2]
[373417145,1752993955186,175.088949,0.00016257,2]
[373417146,1752993993091,-172.37411689,0.00017252,2]
[373417155,1752994232339,-1200.0,0.00017251,2]
[373417156,1752994232349,-1200.0,0.00017252,2]
[373417157,1752994232359,-300.0,0.00017252,2]
[373417158,1752994232368,-300.0,0.00017252,2]
[373417160,1752994232378,-250.0,0.00017252,2]
[373417162,1752994232387,-460.0,0.00017253,2]
[373417164,1752994232396,-465.50452934,0.00017253,2]
[373417166,1752994232406,-460.0,0.00017253,2]
[373417168,1752994232416,-460.0,0.00017253,2]
[373417170,1752994232425,-460.0,0.00017253,2]
[373417172,1752994232435,-467.73022398,0.00017253,2]
[373417175,1752994232444,-460.0,0.00017253,2]
[373417178,1752994232453,-463.34055893,0.00017253,2]
[373417180,1752994232462,-305.56089704,0.00017253,2]
[373417182,1752994232472,-460.0,0.00017253,2]
[373417184,1752994232481,-460.0,0.00017253,2]
[373417186,1752994232490,-460.0,0.00017253,2]
[373417188,1752994232499,-460.0,0.00017253,2]
[373417190,1752994232508,-280.54,0.00017253,2]
[373417191,1752994232518,-460.0,0.00017253,2]
[373417193,1752994232528,-460.0,0.00017253,2]
[373417195,1752994232537,-460.0,0.00017253,2]
[373417197,1752994232546,-460.0,0.00017253,2]
[373417199,1752994232556,-460.0,0.00017253,2]
[373417201,1752994232570,-1125.14,0.00017253,2]
[373417204,1752994232580,-513.82,0.00017253,2]